bitfinex/quotes_SOLUSD_20240718
["timestamp","ask_amount","ask_price","bid_price","bid_amount"]
[1721306831474,29.9304,161.28,161.21,1.24057934]
[1721306832056,45.0,161.3,161.21,1.24057934]
[1721306832258,29.9295,161.31,161.21,1.24057934]
[1721306832259,23.73,161.31,161.21,1.24057934]
[1721306832500,29.9284,161.34,161.22,0.17]
[1721306832650,6.1985,161.33,161.23,6.6098]
[1721306832856,6.1988,161.32,161.24,1.24013918]
[1721306834581,6.1992,161.31,161.23,6.6098]
[1721306834767,6.1989,161.32,161.24,1.2401855]
[1721306835267,42.36,161.34,161.25,16.0056]
[1721306835473,42.36,161.34,161.26,1.24008026]
[1721306835866,6.1991,161.32,161.25,16.0056]
[1721306836459,6.1985,161.33,161.26,1.24014678]
[1721306836869,6.1985,161.33,161.25,16.0056]
[1721306837688,6.1988,161.32,161.25,16.0056]
[1721306837885,6.1992,161.31,161.25,16.0056]
[1721306840000,6.2001,161.29,161.25,16.0056]
[1721306840478,48.5592,161.31,161.25,16.0056]
[1721306840770,23.73,161.31,161.25,16.0056]
[1721306841181,29.9293,161.31,161.25,16.0056]
[1721306841369,0.17,161.32,161.25,16.0056]
[1721306842178,18.8,161.32,161.25,16.0056]
[1721306842399,18.63,161.32,161.25,16.0056]
[1721306842584,0.17,161.31,161.25,16.0056]
[1721306842785,6.3695,161.31,161.25,16.0056]
[1721306842981,6.1996,161.3,161.25,16.0056]
[1721306843483,23.9,161.31,161.21,16.2538]
[1721306843484,6.2009,161.27,161.21,16.2538]
[1721306843877,42.36,161.28,161.21,16.2538]
[1721306844075,63.63,161.27,161.19,6.4307]
[1721306844288,6.2019,161.24,161.19,6.4307]
[1721306844581,29.9316,161.25,161.19,6.4307]
[1721306844883,23.73,161.25,161.19,6.4307]
[1721306845264,23.73,161.25,161.17,15.8383]
[1721306845470,6.202,161.24,161.17,15.8383]
[1721306845670,42.36,161.25,161.17,15.8383]
[1721306846179,6.3722,161.24,161.17,15.8383]
[1721306846385,6.372,161.24,161.17,15.8383]
[1721306847168,0.17,161.24,161.17,15.8383]
[1721306847587,25.002,161.24,161.17,15.8383]
[1721306848372,0.17,161.24,161.18,1.24087422]
[1721306848663,23.73,161.25,161.17,17.07901794]
[1721306848985,0.17,161.26,161.18,1.24071986]
[1721306849377,48.5604,161.28,161.18,1.24071986]
[1721306849883,6.2008,161.27,161.18,1.24071986]
[1721306851289,23.73,161.28,161.18,46.24071986]
[1721306851486,29.9304,161.28,161.18,46.24071986]
[1721306851683,6.2008,161.27,161.18,1.24071986]
[1721306851988,42.36,161.28,161.19,1.24058274]
[1721306851989,23.73,161.28,161.19,1.24058274]
[1721306853979,23.73,161.28,161.2,6.6031]
[1721306854176,29.9307,161.28,161.21,1.24038418]
[1721306854369,6.201,161.27,161.2,7.8435159]
[1721306854985,6.201,161.27,161.21,1.24041846]
[1721306855705,23.9,161.28,161.21,16.74801836]
[1721306855884,23.73,161.28,161.21,16.74801836]
[1721306856082,23.73,161.31,161.21,16.74801836]
[1721306856567,29.9293,161.31,161.21,16.74801836]
[1721306857494,6.1999,161.3,161.21,16.74801836]
[1721306857870,29.9293,161.31,161.21,16.74801836]
[1721306858284,23.73,161.31,161.21,16.74801836]
[1721306859392,6.1999,161.3,161.21,16.74801836]
[1721306859771,29.9293,161.31,161.21,16.74801836]
[1721306860172,6.1996,161.3,161.21,16.74801836]
[1721306860588,29.9293,161.31,161.21,16.74801836]
[1721306865675,6.1989,161.32,161.22,10.0]
[1721306865880,6.1989,161.32,161.23,1.24011613]
[1721306866082,6.1989,161.32,161.24,1.24013177]
[1721306866275,45.0,161.31,161.22,1.24013177]
[1721306866494,68.73,161.31,161.22,1.24013177]
[1721306866688,23.73,161.31,161.22,1.24013177]
[1721306867184,29.9295,161.31,161.22,1.24013177]
[1721306867387,6.1989,161.32,161.22,56.24013177]
[1721306867593,6.1989,161.32,161.23,0.17]
[1721306867788,6.1989,161.32,161.24,1.24007124]
[1721306868282,6.1993,161.31,161.24,1.24007124]
[1721306868492,42.36,161.34,161.22,1.24016316]
[1721306868493,6.1997,161.3,161.22,1.24016316]
[1721306869003,6.2001,161.29,161.22,1.24016316]
[1721306869199,6.2001,161.29,161.21,15.5076]
[1721306869200,29.9305,161.28,161.21,16.74794649]
[1721306869379,29.9305,161.28,161.21,15.5076]
[1721306869380,42.36,161.28,161.21,15.5076]
[1721306869583,29.9318,161.25,161.21,15.5076]
[1721306869903,23.73,161.25,161.21,15.5076]
[1721306870780,6.3709,161.27,161.21,15.5076]
[1721306871981,6.2011,161.26,161.21,15.5076]
[1721306872611,23.73,161.28,161.21,16.74810737]
[1721306872896,29.9307,161.28,161.21,16.74810737]
[1721306873402,6.2008,161.27,161.21,16.74810737]
[1721306874705,29.9305,161.28,161.21,16.74810737]
[1721306876910,6.2012,161.26,161.21,16.74810737]
[1721306877095,6.2018,161.25,161.21,15.5076]
[1721306877680,6.2012,161.26,161.21,16.748044]
[1721306880384,29.9305,161.28,161.21,16.748044]
[1721306880606,6.2008,161.27,161.21,16.748044]
[1721306881419,42.36,161.28,161.21,15.5076]
[1721306881592,63.8,161.27,161.21,15.5076]
[1721306881796,6.2014,161.26,161.21,15.5076]
[1721306881991,6.2014,161.26,161.21,16.74812376]
[1721306882210,6.2008,161.27,161.21,16.74812376]
[1721306882426,11.83,161.24,161.21,16.74812376]
[1721306882910,53.5204,161.28,161.21,16.74812376]
[1721306882911,11.83,161.23,161.21,16.74812376]
[1721306883121,6.48320348,161.31,161.21,28.57812376]
[1721306883330,11.83,161.27,161.21,28.57812376]
[1721306883687,11.83,161.26,161.21,28.57812376]
[1721306884307,11.83,161.27,161.21,28.57812376]
[1721306885013,11.83,161.26,161.21,28.57812376]
[1721306885391,11.83,161.26,161.21,16.74812376]
[1721306885992,11.83,161.24,161.21,16.74812376]
[1721306886389,11.83,161.23,161.21,16.74812376]
[1721306886590,30.46,161.28,161.21,15.5076]
[1721306886795,6.2011,161.26,161.21,15.5076]
[1721306887011,11.83,161.22,161.21,15.5076]
[1721306887213,11.83,161.23,161.21,15.5076]
[1721306887719,47.32,161.28,161.21,15.5076]
[1721306887720,11.83,161.25,161.21,16.74811813]
[1721306888102,11.83,161.24,161.21,16.74805288]
[1721306889203,6.2005,161.28,161.21,16.74805288]
[1721306889407,11.83,161.24,161.21,16.74805288]
[1721306890033,6.2012,161.26,161.21,16.74805288]
[1721306890233,11.83,161.24,161.21,16.74805288]
[1721306891506,6.2012,161.26,161.21,15.5076]
[1721306891715,11.83,161.23,161.21,15.5076]
[1721306891907,11.83,161.23,161.21,16.74809456]
[1721306892103,6.2008,161.27,161.21,16.74809456]
[1721306892426,11.83,161.27,161.22,11.83]
[1721306892608,11.83,161.27,161.23,1.24028239]
[1721306893103,11.83,161.28,161.24,1.24028208]
[1721306894018,11.83,161.28,161.23,1.24015971]
[1721306894216,11.83,161.28,161.24,1.24016056]
[1721306895101,11.83,161.28,161.25,1.24015964]
[1721306895311,11.83,161.28,161.23,1.24015964]
[1721306895618,6.48244327,161.34,161.29,10.0]
[1721306895819,0.8312979,161.36,161.25,22.1344]
[1721306895820,11.83,161.33,161.3,1.23969663]
[1721306896031,11.83,161.34,161.3,1.23969663]
[1721306897209,11.83,161.33,161.31,1.23975381]
[1721306897409,11.83,161.33,161.29,1.23970848]
[1721306897721,11.83,161.32,161.28,1.23971483]
[1721306898022,11.83,161.3,161.28,1.23971483]
[1721306898208,7.0286979,161.36,161.28,1.23971483]
[1721306898407,30.6686979,161.36,161.28,1.23971483]
[1721306898921,24.4712979,161.36,161.29,1.23983827]
[1721306899121,24.4712979,161.36,161.27,1.2397989]
[1721306899416,30.6685979,161.36,161.27,1.2397989]
[1721306899724,24.4712979,161.36,161.27,1.2397989]
[1721306899945,0.8312979,161.36,161.28,0.17]
[1721306900218,0.8312979,161.36,161.28,1.40959172]
[1721306900416,0.8312979,161.36,161.28,11.40959172]
[1721306900624,0.8312979,161.36,161.29,45.0]
[1721306900805,0.8312979,161.36,161.3,1.23957654]
[1721306903522,0.8312979,161.36,161.27,1.23967996]
[1721306903740,6.1977,161.35,161.27,1.23967996]
[1721306904025,7.0286979,161.36,161.27,1.23967996]
[1721306904221,6.1978,161.35,161.27,1.23967996]
[1721306904412,6.1983,161.34,161.27,1.23967996]
[1721306904808,6.1983,161.34,161.28,1.23991411]
[1721306905111,6.1983,161.34,161.26,1.23988931]
[1721306905315,6.1987,161.33,161.26,1.2399841]
[1721306905518,6.1987,161.33,161.27,1.24000387]
[1721306905827,6.1981,161.34,161.27,1.24000387]
[1721306906025,43.1012979,161.36,161.27,1.24000387]
[1721306906026,24.4712979,161.36,161.27,1.24000387]
[1721306906233,30.6688979,161.36,161.27,1.24000387]
[1721306906531,0.8312979,161.36,161.26,11.23977062]
[1721306906742,0.8312979,161.36,161.27,1.23973361]
[1721306906938,7.0286979,161.36,161.27,46.23973361]
[1721306907337,0.8312979,161.36,161.27,46.23973361]
[1721306907723,0.8312979,161.36,161.28,10.17]
[1721306907929,0.8312979,161.36,161.29,46.23963297]
[1721306908153,0.8312979,161.36,161.3,1.2396319]
[1721306910127,7.0285979,161.36,161.3,1.2396319]
[1721306910522,0.8312979,161.36,161.3,1.2396319]
[1721306911436,7.0285979,161.36,161.3,1.2396319]
[1721306911746,0.8312979,161.36,161.27,21.23977189]
[1721306911944,7.0286979,161.36,161.28,45.0]
[1721306912136,7.0286979,161.36,161.29,1.23974018]
[1721306912446,0.8312979,161.36,161.3,1.23973931]
[1721306912641,0.8312979,161.36,161.31,15.2333]
[1721306912857,0.8312979,161.36,161.32,1.23947243]
[1721306913037,0.8312979,161.36,161.33,1.23953122]
[1721306913352,0.8312979,161.36,161.32,1.23953402]
[1721306913721,0.8312979,161.36,161.33,1.23956481]
[1721306914318,0.8312979,161.36,161.34,16.0731]
[1721306914524,1.2638782,161.4,161.36,8.581]
[1721306914749,1.2638782,161.4,161.37,11.40896886]
[1721306914969,1.2638782,161.4,161.37,56.40896886]
[1721306915947,1.2638782,161.4,161.39,10.0]
[1721306916143,1.2638782,161.4,161.39,56.57875285]
[1721306916324,1.2638782,161.4,161.39,46.40875285]
[1721306916531,1.2638782,161.4,161.39,1.23875285]
[1721306917138,1.2638782,161.4,161.38,1.23893615]
[1721306917646,1.2638782,161.4,161.37,1.2390984]
[1721306917950,1.2638782,161.4,161.35,1.23922233]
[1721306918130,1.2638782,161.4,161.36,1.23921583]
[1721306919151,7.4596782,161.4,161.33,1.23935601]
[1721306919749,1.2638782,161.4,161.33,1.23935601]
[1721306919927,7.4595782,161.4,161.33,1.23935601]
[1721306920535,6.1962,161.39,161.33,1.23935601]
[1721306920951,6.1966,161.38,161.33,1.23935601]
[1721306921133,23.64,161.37,161.28,17.89067129]
[1721306921347,6.1985,161.33,161.28,1.23957129]
[1721306921541,6.198,161.35,161.28,1.23957129]
[1721306921854,6.1982,161.34,161.28,1.23957129]
[1721306922035,6.1982,161.34,161.27,1.23982531]
[1721306922236,6.1985,161.33,161.27,1.23982531]
[1721306922446,6.198,161.35,161.27,1.23982531]
[1721306922853,6.1974,161.36,161.27,1.23982531]
[1721306923448,29.837,161.37,161.27,46.23982531]
[1721306923651,29.837,161.37,161.27,66.23982531]
[1721306923835,6.1965,161.38,161.28,10.17]
[1721306924041,6.1965,161.38,161.29,46.23953639]
[1721306924355,6.1969,161.37,161.3,1.23953712]
[1721306924665,6.1965,161.38,161.3,1.23953712]
[1721306925346,6.1969,161.37,161.3,1.23953712]
[1721306925849,6.1966,161.38,161.3,1.23953712]
[1721306926553,6.197,161.37,161.3,1.23953712]
[1721306927145,1.2638782,161.4,161.3,1.23953712]
[1721306927346,44.9038782,161.4,161.3,1.23953712]
[1721306927947,6.1962,161.39,161.3,1.23953712]
[1721306928666,6.1962,161.39,161.3,11.23953712]
[1721306928868,31.0996782,161.4,161.31,45.0]
[1721306929072,31.0996782,161.4,161.32,1.23942411]
[1721306929384,7.4596782,161.4,161.33,1.23942341]
[1721306929748,1.2638782,161.4,161.33,1.23942341]
[1721306929945,1.2638782,161.4,161.33,46.23942341]
[1721306930755,1.2638782,161.4,161.34,16.7734]
[1721306930956,1.2638782,161.4,161.35,46.23907863]
[1721306931146,1.2638782,161.4,161.36,1.23908206]
[1721306932169,6.1973,161.36,161.31,17.59225877]
[1721306932373,6.1977,161.35,161.31,1.23905877]
[1721306932753,6.1968,161.38,161.31,1.23905877]
[1721306932954,43.5338782,161.4,161.31,1.23905877]
[1721306933172,0.17,161.39,161.31,1.23905877]
[1721306933376,6.197,161.37,161.31,1.23905877]
[1721306933553,24.9038782,161.4,161.31,1.23905877]
[1721306933877,6.1966,161.38,161.31,1.23905877]
[1721306934469,6.1966,161.38,161.31,46.23905877]
[1721306935459,1.2638782,161.4,161.31,56.23905877]
[1721306935655,1.2638782,161.4,161.35,10.0]
[1721306935870,1.2638782,161.4,161.37,10.0]
[1721306936072,1.2638782,161.4,161.38,46.23893689]
[1721306936566,1.2638782,161.4,161.39,0.17]
[1721306936962,1.2638782,161.4,161.38,52.35413689]
[1721306939875,1.2638782,161.4,161.39,10.17]
[1721306940075,1.2638782,161.4,161.39,55.17]
[1721306940464,1.2638782,161.4,161.39,55.34]
[1721306941357,1.2638782,161.4,161.39,45.34]
[1721306941553,1.2638782,161.4,161.39,45.17]
[1721306941759,1.2638782,161.4,161.38,7.35413689]
[1721306941979,1.2638782,161.4,161.39,1.23899704]
[1721306942157,1.2638782,161.4,161.36,21.23901789]
[1721306943166,1.2638782,161.4,161.39,10.0]
[1721306943472,1.2638782,161.4,161.39,56.57875331]
[1721306944283,1.2638782,161.4,161.39,76.57875331]
[1721306945381,1.2638782,161.4,161.39,56.57875331]
[1721306945681,1.2638782,161.4,161.39,76.57875331]
[1721306946071,1.2638782,161.4,161.39,92.03865331]
[1721306947176,0.8312979,161.52,161.42,10.0]
[1721306947378,0.8312979,161.52,161.43,46.23848166]
[1721306947881,7.0224979,161.52,161.43,46.23848166]
[1721306948470,15.7676,161.51,161.43,46.23848166]
[1721306948677,0.8312979,161.52,161.44,10.34]
[1721306948988,0.8312979,161.52,161.45,46.23831056]
[1721306949168,0.8312979,161.52,161.46,1.23831087]
[1721306949791,0.8312979,161.52,161.47,10.17]
[1721306949964,0.8312979,161.52,161.48,46.23813608]
[1721306950163,0.8312979,161.52,161.49,11.23813376]
[1721306950377,0.8312979,161.52,161.5,45.0]
[1721306950678,0.8312979,161.52,161.51,1.23804367]
[1721306951581,0.8312979,161.52,161.5,45.0]
[1721306951774,0.8312979,161.52,161.51,46.40787938]
[1721306952276,0.8312979,161.52,161.51,11.40787938]
[1721306952489,0.8312979,161.52,161.51,62.61637938]
[1721306952664,0.8312979,161.52,161.51,62.81076612]
[1721306953273,31.0038,161.7,161.56,10.0]
[1721306953460,24.4712979,161.68,161.57,45.17]
[1721306953667,6.187,161.63,161.57,45.0]
[1721306953862,23.64,161.66,161.54,10.0]
[1721306954067,57.7351,161.66,161.55,45.0]
[1721306954261,15.4669,161.64,161.53,0.17]
[1721306954589,6.1885,161.59,161.53,45.17]
[1721306954883,16.6153,161.62,161.53,1.23768287]
[1721306955081,22.8029,161.62,161.53,1.23768287]
[1721306955283,22.8029,161.62,161.54,10.0]
[1721306955579,16.6153,161.62,161.55,1.4076205]
[1721306955793,15.0723,161.66,161.56,10.0]
[1721306955996,6.1865,161.64,161.57,1.23746254]
[1721306956202,6.1866,161.64,161.58,1.23746817]
[1721306956786,6.1862,161.65,161.58,1.23746817]
[1721306957004,21.2584,161.66,161.58,1.23746817]
[1721306957165,15.0723,161.66,161.58,1.23746817]
[1721306957493,6.1866,161.64,161.58,1.23746817]
[1721306957691,6.5717,161.67,161.58,11.23746817]
[1721306957895,0.8312979,161.68,161.59,45.34]
[1721306958092,0.8312979,161.68,161.6,1.23716485]
[1721306958284,6.1854,161.67,161.61,1.2372078]
[1721306958494,0.8312979,161.68,161.61,1.2372078]
[1721306958809,6.1855,161.67,161.61,1.2372078]
[1721306959019,7.0163979,161.68,161.61,1.2372078]
[1721306959517,0.8312979,161.68,161.61,1.2372078]
[1721306960792,6.1858,161.67,161.61,1.2372078]
[1721306960987,6.1858,161.66,161.61,1.2372078]
[1721306961210,0.8312979,161.68,161.62,1.2372063]
[1721306961373,7.0163979,161.68,161.62,1.2372063]
[1721306961692,0.8312979,161.68,161.62,46.2372063]
[1721306961896,0.8312979,161.68,161.62,1.2372063]
[1721306962097,0.8312979,161.68,161.62,46.2372063]
[1721306962877,6.1856,161.67,161.62,1.2372063]
[1721306963077,0.8312979,161.68,161.62,1.2372063]
[1721306963498,7.0163979,161.68,161.62,1.2372063]
[1721306963703,0.8312979,161.68,161.63,10.17]
[1721306963886,0.8312979,161.68,161.64,46.2369442]
[1721306964093,0.8312979,161.68,161.65,1.23694505]
[1721306964912,0.8312979,161.68,161.63,10.0]
[1721306965284,0.8312979,161.68,161.64,1.23694113]
[1721306966219,7.0163979,161.68,161.62,1.4069564]
[1721306966404,0.8312979,161.68,161.63,10.0]
[1721306966599,0.8312979,161.68,161.64,1.23697679]
[1721306966802,0.8312979,161.68,161.65,1.23697764]
[1721306967010,7.0162979,161.68,161.65,1.23697764]
[1721306967188,0.8312979,161.68,161.65,1.23697764]
[1721306969292,7.0166979,161.68,161.65,1.23697764]
[1721306969487,6.1854,161.67,161.65,1.23697764]
[1721306969693,0.8312979,161.68,161.65,1.23697764]
[1721306970487,0.8312979,161.68,161.65,11.23697764]
[1721306970687,0.8312979,161.68,161.66,45.0]
[1721306970895,0.8312979,161.68,161.67,1.23677243]
[1721306971509,7.0165979,161.68,161.64,1.23689288]
[1721306971718,6.1862,161.65,161.64,1.2370098]
[1721306971898,16.2943979,161.68,161.61,1.23717378]
[1721306972094,6.1863,161.65,161.61,1.23717378]
[1721306972319,6.1869,161.64,161.61,1.23717378]
[1721306972628,15.465,161.66,161.58,1.23731516]
[1721306972823,23.64,161.65,161.58,1.23731516]
[1721306973396,6.1878,161.61,161.59,1.23747858]
[1721306973703,34.0973,161.64,161.56,1.23749976]
[1721306973927,6.1895,161.57,161.53,1.23749976]
[1721306974228,39.1089,161.62,161.53,1.23749976]
[1721306974229,23.64,161.62,161.53,1.23749976]
[1721306974414,23.64,161.59,161.51,1.23786278]
[1721306974613,6.1904,161.54,161.52,1.23800823]
[1721306974816,6.1904,161.54,161.49,1.23810746]
[1721306975123,38.8935,161.59,161.49,1.23810746]
[1721306975323,6.1897,161.56,161.49,1.23810746]
[1721306975898,38.8935,161.59,161.49,1.23810746]
[1721306976127,6.1904,161.54,161.49,1.23810746]
[1721306976330,6.1904,161.54,161.5,1.23809095]
[1721306976537,6.1908,161.53,161.47,1.23816049]
[1721306976729,6.1916,161.51,161.47,1.23816049]
[1721306976932,39.1148,161.56,161.47,1.23816049]
[1721306977245,23.64,161.56,161.47,1.23816049]
[1721306977558,54.3651,161.59,161.49,10.0]
[1721306977734,20.0,161.58,161.5,1.23802224]
[1721306978110,6.1904,161.54,161.5,1.23802224]
[1721306978510,6.1912,161.52,161.48,1.23817053]
[1721306978722,6.1912,161.52,161.49,1.23823404]
[1721306978908,6.1912,161.52,161.46,1.23821443]
[1721306979110,15.4739,161.57,161.47,10.17]
[1721306979328,6.1907,161.54,161.48,1.23818289]
[1721306979505,6.1907,161.54,161.49,1.23818794]
[1721306980204,6.191,161.53,161.49,1.23818794]
[1721306980605,6.191,161.53,161.47,1.40820177]
[1721306980804,6.191,161.53,161.47,1.23820177]
[1721306981040,6.1912,161.52,161.47,1.23820177]
[1721306981207,6.1909,161.53,161.47,1.23820177]
[1721306981860,6.1918,161.51,161.47,1.23820177]
[1721306982045,6.1912,161.52,161.45,1.23842347]
[1721306982246,6.1923,161.49,161.46,1.23844312]
[1721306982461,39.1161,161.54,161.43,10.0]
[1721306982634,23.64,161.54,161.44,1.23845394]
[1721306983064,23.64,161.54,161.45,10.0]
[1721306983365,40.5762344,161.57,161.46,1.23825897]
[1721306983567,6.1918,161.51,161.46,1.23825897]
[1721306984053,57.746,161.55,161.46,1.23825897]
[1721306984245,6.1927,161.48,161.42,1.23856497]
[1721306984643,6.1939,161.45,161.41,1.23858016]
[1721306984849,6.1938,161.46,161.38,1.2388777]
[1721306985232,6.1931,161.47,161.39,10.0]
[1721306985437,6.193,161.48,161.4,1.23869785]
[1721306985647,6.1932,161.47,161.4,1.23869785]
[1721306985861,6.1932,161.47,161.4,46.23869785]
[1721306986151,6.1923,161.49,161.41,10.34]
[1721306986354,6.1917,161.51,161.42,46.23854486]
[1721306986563,285.5374,161.62,161.44,16.5485]
[1721306986564,21.8861,161.58,161.44,16.5485]
[1721306986771,6.191,161.53,161.45,46.23835661]
[1721306986960,23.64,161.56,161.46,1.23834929]
[1721306986961,6.1913,161.52,161.46,1.23834929]
[1721306988055,28.35869639,161.58,161.47,0.17]
[1721306988369,6.1903,161.55,161.47,0.17]
[1721306989145,6.1893,161.57,161.47,10.17]
[1721306989348,67.1028416,161.6,161.51,10.0]
[1721306989349,12.6602416,161.6,161.51,10.0]
[1721306989544,6.1878,161.61,161.52,46.40775077]
[1721306989850,15.4545,161.63,161.52,46.40775077]
[1721306989851,6.47061553,161.62,161.52,1.23775077]
[1721306990174,6.1888,161.59,161.52,1.23775077]
[1721306990348,15.4679,161.63,161.52,46.23775077]
[1721306990659,6.1904,161.54,161.48,1.4325322]
[1721306990862,26.53,161.57,161.49,1.23822426]
[1721306991049,6.1912,161.52,161.45,1.23830418]
[1721306991248,6.1917,161.51,161.46,1.23832168]
[1721306991856,6.1916,161.51,161.46,1.23832168]
[1721306992145,67.1751,161.57,161.45,1.23848283]
[1721306992146,51.7012,161.57,161.45,1.23848283]
[1721306992462,45.16,161.53,161.4,1.23870865]
[1721306992765,6.1926,161.49,161.4,1.23870865]
[1721306992965,6.192,161.5,161.4,1.23870865]
[1721306993464,6.1925,161.49,161.4,1.23870865]
[1721306993835,6.192,161.5,161.41,10.0]
[1721306994040,6.1923,161.49,161.42,1.23857652]
[1721306994242,6.1927,161.48,161.43,1.23860421]
[1721306994467,6.1927,161.48,161.4,1.23867717]
[1721306994770,6.1937,161.46,161.4,1.23867717]
[1721306995143,6.1938,161.45,161.4,1.23867717]
[1721306995448,6.1935,161.46,161.4,1.23867717]
[1721306995855,6.1939,161.45,161.4,1.23867717]
[1721306996146,6.1935,161.46,161.4,1.23867717]
[1721306996354,6.1935,161.46,161.38,1.23891318]
[1721306996956,15.4798,161.5,161.38,1.23891318]
[1721306997163,32.7217,161.51,161.39,10.17]
[1721306997466,20.0,161.5,161.4,1.23865569]
[1721306997760,6.1931,161.47,161.4,46.23865569]
[1721306998151,45.16,161.51,161.4,1.23865569]
[1721306998461,6.1935,161.46,161.41,1.23892196]
[1721306998654,6.1931,161.47,161.39,10.0]
[1721306998843,6.1931,161.47,161.4,1.23883013]
[1721306999044,6.1923,161.49,161.4,1.23883013]
[1721306999563,6.1931,161.47,161.4,46.23883013]
[1721306999767,6.1931,161.47,161.41,1.23882331]
[1721306999956,6.1938,161.46,161.38,1.23895207]
[1721307000478,20.17,161.5,161.38,1.23895207]
[1721307000654,6.1939,161.45,161.38,1.23895207]
[1721307000973,6.1935,161.46,161.38,1.23895207]
[1721307001547,0.17,161.49,161.39,10.17]
[1721307001758,20.0,161.5,161.4,1.23878693]
[1721307002269,26.53,161.54,161.42,10.0]
[1721307002468,26.53,161.54,161.43,46.40851602]
[1721307002851,6.1916,161.51,161.43,46.40851602]
[1721307003072,6.1919,161.5,161.43,46.40851602]
[1721307003575,6.1931,161.47,161.44,1.23851098]
[1721307003779,34.1093,161.51,161.41,1.23851098]
[1721307003960,6.1923,161.49,161.41,46.23851098]
[1721307004347,42.0065,161.54,161.41,46.23851098]
[1721307004348,34.1086,161.52,161.41,46.23851098]
[1721307004550,6.1927,161.48,161.41,1.23851098]
[1721307004749,6.1924,161.49,161.42,1.23870966]
[1721307004965,6.192,161.5,161.42,1.23870966]
[1721307005574,6.1927,161.48,161.42,1.23870966]
[1721307005778,6.1916,161.51,161.42,1.23870966]
[1721307005989,26.53,161.54,161.42,1.23870966]
[1721307006285,15.4783,161.52,161.42,1.23870966]
[1721307006578,6.1934,161.47,161.38,1.23880648]
[1721307006779,6.1934,161.47,161.39,0.17]
[1721307006958,6.1935,161.46,161.39,1.238826]
[1721307007156,45.16,161.5,161.4,1.23891715]
[1721307007157,20.0,161.49,161.4,1.23891715]
[1721307007490,6.1934,161.46,161.4,1.23891715]
[1721307007657,6.1932,161.47,161.4,1.23891715]
[1721307008048,6.1932,161.47,161.41,1.23883158]
[1721307008884,20.0,161.49,161.41,1.23883158]
[1721307009049,0.17,161.48,161.38,1.23891012]
[1721307009380,6.1942,161.44,161.38,1.23891012]
[1721307009953,6.1939,161.45,161.38,1.23891012]
[1721307010571,6.1935,161.46,161.38,1.23891012]
[1721307010764,6.1935,161.46,161.38,46.23891012]
[1721307010970,23.61,161.47,161.39,10.17]
[1721307011172,29.8022,161.5,161.41,10.0]
[1721307011352,23.61,161.5,161.42,46.23862175]
[1721307011561,23.61,161.5,161.43,1.23864907]
[1721307011870,29.8019,161.5,161.43,1.23864907]
[1721307012195,23.61,161.5,161.43,1.23864907]
[1721307012489,6.1927,161.48,161.43,1.23864907]
[1721307012654,23.61,161.5,161.43,1.23864907]
[1721307012655,6.1923,161.49,161.43,1.23864907]
[1721307012853,23.61,161.5,161.43,1.23864907]
[1721307013171,6.1931,161.47,161.4,1.23868303]
[1721307013355,23.61,161.5,161.4,1.23868303]
[1721307013559,6.1932,161.47,161.4,46.23868303]
[1721307014769,6.1923,161.49,161.41,10.17]
[1721307014964,6.1923,161.49,161.42,46.23856504]
[1721307015276,29.802,161.5,161.43,1.23856546]
[1721307015480,6.1924,161.49,161.43,1.23856546]
[1721307015780,23.61,161.5,161.43,1.23856546]
[1721307015975,6.1923,161.49,161.43,1.23856546]
[1721307016156,29.8022,161.5,161.43,1.23856546]
[1721307016656,23.61,161.5,161.43,11.23856546]
[1721307016863,23.61,161.5,161.44,45.0]
[1721307017063,23.61,161.5,161.45,1.23847456]
[1721307017271,23.61,161.5,161.46,1.23847456]
[1721307017675,29.802,161.5,161.46,1.23847456]
[1721307018182,29.802,161.5,161.47,1.23847522]
[1721307018377,23.61,161.5,161.45,1.23847409]
[1721307018585,6.1913,161.52,161.46,1.23837702]
[1721307019479,6.1915,161.51,161.46,1.23837702]
[1721307019867,6.1914,161.52,161.46,1.23837702]
[1721307020385,15.4725,161.58,161.47,16.2948]